{"text_format":"1","workbook":"xlsx","n_sheets":2,"sheets":["Studieplan","Sammanfattning"],"not_rendered":{"charts":0,"images":1,"macros":1,"external_links":0,"defined_names":1,"comments":0,"pivot_tables":0},"unopened":[],"bounds":{"document_bytes":16777216,"sheet_cells":100000,"rows_first":2000,"rows_last":500,"rows_between":2000,"halvings":0,"cell_chars":16384,"cell_head_chars":4096},"cells_cut":0,"cells_raw":0,"read":"whole","date_system":"1900"}

{"sheet":"Studieplan","index":0,"n_rows":179,"n_cols":13,"rows_kept":179,"cut":false,"hidden":false,"merged":[[66,0,66,2],[33,3,33,11],[34,4,34,11],[11,0,11,12],[50,0,50,2],[51,0,51,2],[54,0,54,12],[55,3,55,11],[56,4,56,11],[25,2,25,12],[26,2,26,12],[28,2,28,12],[29,0,29,12],[32,0,32,12],[19,2,19,12],[21,2,21,12],[22,2,22,12],[23,2,23,12],[24,2,24,12],[5,0,5,1],[5,2,5,8],[6,0,6,1],[6,2,6,8],[7,0,7,1],[7,2,7,8],[8,0,8,1],[8,2,8,8],[91,0,91,2],[94,0,94,12],[95,3,95,11],[96,4,96,11],[0,0,0,8],[14,2,14,12],[15,2,15,12],[16,2,16,12],[17,2,17,12],[18,2,18,12],[2,0,2,1],[2,2,2,8],[3,0,3,1],[3,2,3,8],[4,0,4,1],[4,2,4,8],[67,0,67,2],[70,0,70,12],[71,3,71,11],[72,4,72,11],[90,0,90,2],[171,0,171,12],[111,0,111,2],[112,0,112,2],[115,0,115,12],[116,3,116,11],[117,4,117,11],[135,0,135,2],[136,0,136,2],[139,0,139,12],[140,3,140,11],[168,1,168,2],[141,4,141,11],[159,0,159,2],[160,0,160,2],[163,0,163,12],[173,3,173,11],[174,4,174,11],[177,0,177,2],[178,0,178,2],[172,0,172,12]]}
["Studieplan till ansökan om civilingenjörsexamen i Teknisk fysik, 300hp"]
[]
["Datum:"]
["Namn:"]
["Personnummer:"]
["E-post:"]
["Telefon dagtid:"]
["Började på F (termin, år):"]
["Anledning till granskning av bilaga. Ex inför planering av studier, tillgodoräkning, exjobb (ange datum för påbörjande av exjobbet), examen osv. "]
[]
["Instruktioner:"]
["* Fyll i orange fält. Gula fält automatsummeras. \n* På blad två ska en sammanfattning av kurser (i datumordning) genereras via färdigt skript (kräver datum i kolumn 1).\n* Sammanfattningen genereras genom att klicka den blå knappen på sidan. Makron MÅSTE aktiveras för att detta ska fungera.\n* Observera att du måste använda Excel Macro-Enabled Worksheet (filändelse .xlsm) för och du får inte lägga till eller flytta runt rader/kolumner i dokumentet.\n* Ifylld bilaga sänds elektronisk (i Excel-format) till Maria Hamrin, maria.hamrin@space.umu.se. \n* Ifylld bilaga måste stämma mot utbildningsplan, ev. tillgodoräknade, Ladok, etc. Utbildningsplanen hittas på physics.umu.se/student/tekniskfysik/utbildningsplan-och-examensbeskrivning\n* Alla kurser som inte finns listade i utbildningsplan måste formellt tillgodoräknas (förutom \"fria kurser\") för att få räknas i examen.\n* För att få räknas i examen så får kurser inte överlappa varandra.\n* Minst 60 hp kurser (inklusive examensarbetet) måste vara på avancerad nivå.\n* Använd kolumn 9 för att kommentera t.ex. tillgodoräknanden (genomförda eller planerade) och icke avlutade eller planerade kurser.\n\n"]
[]
["Kolumnförklaring:"]
["Datum","1.","Datum för godkänt på kursen. Måste anges på formatet åååå-mm-dd."]
["Kurskod","2.","Kurskod."]
["Kursnamn","3.","Kursens namn."]
["Hp","4.","Kursen totala hp."]
[null,"5.-8.","Antal hp av kursens totala hp som återfinns i kategorierna 4-7 nedan - se utbildningsplan!"]
["PL","5.","Hp projektledning (minst 7,5hp i examen) (notera att projektledning och projektarbete inte är samma sak)."]
["Pa","6.","Hp projektarbete, fyll i 6.1-6.4. "]
["PaN","6.1","Hp projektarbete mot näringsliv/samhälle (minst 7,5hp i examen)."]
["PaSam","6.2","Hp sammanhängande projektarbete genomfört i större projektgrupp (minst 7,5hp långa). (*)"]
["PaStor","6.3","Hp  projektarbete genomfört i större projektgrupp. (*)"]
["PaTot","6.4","Totala hp projektarbete (minst 15hp i examen). Det är tillåtet att kurs samtidigt uppfyller ett/flera krav inom 6.1-6.3. (*)"]
["Hut","7.","Hp hållbar utveckling (minst 7,5hp i examen)."]
["Data","8.","Hp datavetenskap (minst 12hp i examen). Gäller enbart kategori ma-ber-verktyg."]
["Avn","9.","Hp kurser på avancerad nivå"]
["Kommentarer","10.","Ev. kommentarer, t.ex. gällande ej avklarade kurser (omtentor, restlabbar) eller kurser som avses läsas eller som har/ska tillgodoräknas."]
["(*) Förtydligande:\n- Studenter som antagits på programmat innan ht 2011 får använda lägre krav: Minst 7,5 hp projektarbete i grupp om minst 3 personer (samt inget krav om sammanhängande projekt). \n- Studenter som antagits f.o.m. ht 2011 måste följa kravet: Alla projektkurspoäng i stor grupp (minst 4 personer) samt minst 7,5 hp sammanhängande projekt."]
[]
[]
["Matematiska och beräkningsvetenskapliga metoder och verktyg (minst 67,5hp)"]
[null,null,null,"Högskolepoäng (hp)"]
[null,null,null,null,"Varav (hp)…"]
["1.","2.","3.","4.","5.","6.1","6.2","6.3","6.4","7.","8.","9.","10."]
["Datum (åååå-mm-dd)","Kurskod","Kursnamn","Hp","PL","PaN","PaSam","PaStor","PaTot","Hut","Data","Avn","Kommentarer"]
[]
[]
[]
[]
[]
[]
[]
[]
[]
[]
[]
[]
[]
["Summa av resp. kolumn:",null,null,{"$f":"SUM(D38:D50)","v":0},{"$f":"SUM(E38:E50)","v":0},0,0,0,0,0,0,{"$f":"SUM(L38:L50)","v":0}]
["Minimum i examen:",null,null,"67,5hp",null,null,null,null,null,null,"12hp"]
[]
[]
["Baskurser inom statistisk analys och grundläggande mätvärdesbehandling (minst 12hp)"]
[null,null,null,"Högskolepoäng (hp)"]
[null,null,null,null,"Varav (hp)…"]
["1.","2.","3.","4.","5.","6.1","6.2","6.3","6.4","7.","8.","9.","10."]
["Datum (åååå-mm-dd)","Kurskod","Kursnamn","Hp","PL","PaN","PaSam","PaStor","PaTot","Hut","Data","Avn","Kommentarer"]
[]
[]
[]
[]
[]
[]
[]
["Summa av resp. kolumn:",null,null,{"$f":"SUM(D60:D66)","v":0},{"$f":"SUM(E60:E66)","v":0},0,0,0,0,0,null,{"$f":"SUM(L60:L66)","v":0}]
["Minimum i examen:",null,null,"12hp"]
[]
[]
["Fysikalisk teori med tillämpningar (minst 60hp)"]
[null,null,null,"Högskolepoäng (hp)"]
[null,null,null,null,"Varav (hp)…"]
["1.","2.","3.","4.","5.","6.1","6.2","6.3","6.4","7.","8.","9.","10."]
["Datum (åååå-mm-dd)","Kurskod","Kursnamn","Hp","PL","PaN","PaSam","PaStor","PaTot","Hut","Data","Avn","Kommentarer"]
[]
[]
[]
[]
[]
[]
[]
[]
[]
[]
[]
[]
[]
[]
[]
["Summa av resp. kolumn:",null,null,{"$f":"SUM(D76:D90)","v":0},{"$f":"SUM(E76:E90)","v":0},0,0,0,0,0,null,{"$f":"SUM(L76:L90)","v":0}]
["Minimum i examen:",null,null,"60hp"]
[]
[]
["Allmänna ingenjörskurser (minst 52,5hp)"]
[null,null,null,"Högskolepoäng (hp)"]
[null,null,null,null,"Varav (hp)…"]
["1.","2.","3.","4.","5.","6.1","6.2","6.3","6.4","7.","8.","9.","10."]
["Datum (åååå-mm-dd)","Kurskod","Kursnamn","Hp","PL","PaN","PaSam","PaStor","PaTot","Hut","Data","Avn","Kommentarer"]
[]
[]
[]
[]
[]
[]
[]
[]
[]
[]
[]
[]
["Summa av resp. kolumn:",null,null,{"$f":"SUM(D100:D111)","v":0},0,0,0,0,0,0,null,{"$f":"SUM(L100:L111)","v":0}]
["Minimum i examen:",null,null,"52,5hp"]
[]
[]
["Profilkurser (minst 45hp)"]
[null,null,null,"Högskolepoäng (hp)"]
[null,null,null,null,"Varav (hp)…"]
["1.","2.","3.","4.","5.","6.1","6.2","6.3","6.4","7.","8.","9.","10."]
["Datum (åååå-mm-dd)","Kurskod","Kursnamn","Hp","PL","PaN","PaSam","PaStor","PaTot","Hut","Data","Avn","Kommentarer"]
[]
[]
[]
[]
[]
[]
[]
[]
[]
[]
[]
[]
[]
[]
[]
["Summa av resp. kolumn:",null,null,{"$f":"SUM(D121:D135)","v":0},{"$f":"SUM(E121:E135)","v":0},0,0,0,0,0,null,{"$f":"SUM(L121:L135)","v":0}]
["Minimum i examen:",null,null,"45hp"]
[]
[]
["Fria kurser (max 33hp)"]
[null,null,null,"Högskolepoäng (hp)"]
[null,null,null,null,"Varav (hp)…"]
["1.","2.","3.","4.","5.","6.1","6.2","6.3","6.4","7.","8.","9.","10."]
["Datum (åååå-mm-dd)","Kurskod","Kursnamn","Hp","PL","PaN","PaSam","PaStor","PaTot","Hut","Data","Avn","Kommentarer"]
[]
[]
[]
[]
[]
[]
[]
[]
[]
[]
[]
[]
[]
[]
[]
["Summa av resp. kolumn:",null,null,{"$f":"SUM(D145:D159)","v":0},{"$f":"SUM(E145:E159)","v":0},0,0,0,0,0,null,{"$f":"SUM(L145:L159)","v":0}]
["Maximum i examen:",null,null,"33hp"]
[]
[]
["Examensarbete (30hp)"]
["1.","2.","3.","4.","5.","6.1","6.2","6.3","6.4","7.","8.","9.","10."]
["Datum (åååå-mm-dd)","Kurskod","Kursnamn","Hp","PL","PaN","PaSam","PaStor","PaTot","Hut","Data","Avn","Kommentarer"]
[]
[]
["Titel examensarbete:"]
[]
[]
["Totalsumma för resp. kolumn (genereras automatiskt):"]
["Kolumn 3 måste summera så nära 300hp som möjligt (dock ej understigande). Summan får överstiga med fåtal hp, men ej överstiga motsvarande hel kurs. \nNotera också att du måste uppfylla alla krav som anges i examensbeskrivning och utbildningsplan. Se även instruktioner överst i detta dokument."]
[null,null,null,"Högskolepoäng (hp)"]
[null,null,null,null,"Varav (hp)…"]
[null,null,null,"4.","5.","6.1","6.2","6.3","6.4","7.","8.","9.","10."]
[null,null,null,"Hp","PL","PaN","PaSam","PaStor","PaTot","Hut","Data","Avn","Kommentarer"]
["Totalsumma:",null,null,{"$f":"SUM(D167,D160,D136,D112,D91,D67,D51)","v":0},{"$f":"SUM(E160,E136,E112,E91,E67,E51)","v":0},0,0,0,0,0,{"$f":"K51","v":0},{"$f":"SUM(L160,L136,L112,L91,L67,L51,L167)","v":0}]
["Minimum i examen:",null,null,"300hp","7,5hp","7,5hp","7,5hp","15hp","15hp","7,5hp","12hp","60hp"]

{"sheet":"Sammanfattning","index":1,"n_rows":0,"n_cols":0,"rows_kept":0,"cut":false,"hidden":false,"merged":[]}